Workbook

Sheet Informática (hidden)
A1: MEMÓRIA DE CÁLCULO PARA ALUGUEL DE EQUIPAMENTOS DE INFORMÁTICA
B2: MÊS-BASE: | C2: 2014-11-01 | H2: Custo Equipamento R$ | I2: Vida Útil (Ano) | J2: Meses p/Ano de Uso | K2: Valor Percentual Residual | L2: Depreciação Mensal - R$
A4: Item | B4: Preço 1 Aluguel | C4: Preço 2 Aluguel | D4: Preço 3 Aluguel | E4: MÉDIA | H4: 2000 | I4: 4 | J4: =12 -> 12 | K4: 0.1 | L4: =(H4*(100%-K4))/(I4*J4) -> 37.5
A5: COMPUTADOR DESKTOP + SISTEMA OPERACIONAL + OFFICE | B5: 700 | E5: =AVERAGE(B5:D5) -> 700 | H5: 27300 | I5: 4 | J5: 12 | K5: 0.5 | L5: =(H5*(100%-K5))/(I5*J5) -> 284.38
A6: NOTEBOOK + SISTEMA OPERACIONAL + OFFICE | B6: 0 | E6: =AVERAGE(B6:D6) -> 0
A7: Impressora A4 (Multifuncional a laser) | C7: 280 | D7: 1200 | E7: =AVERAGE(B7:D7) -> 740
A8: Impressora A3 | C8: 820 | D8: 800 | E8: =AVERAGE(B8:D8) -> 810
A10: Item | B10: PREÇO DE AQUISIÇÃO 1 | C10: PREÇO DE AQUISIÇÃO 2 | D10: PREÇO DE AQUISIÇÃO 3 | E10: MÉDIA | F10: ALUGUEL MENSAL
A11: Aplicativo Gráfico / Web - Uma única Licença | B11: 0 | E11: =AVERAGE(B11:D11) -> 0 | F11: =ROUND(E11/48,2)+L4 -> 37.5
A12: Aplicativos de planejamento e gerenciamento (Auto CAD Ultimate e MS- PROJECT) - Uma única licença | B12: 0 | E12: =AVERAGE(B12:D12) -> 0 | F12: =ROUND(E12/48,2)+L5 -> 284.38
A14: ITENS NO ORÇAMENTO
A15: COMPUTADOR
A16: TIPO | B16: Quantidade | C16: Valor Médio
A18: COMPUTADOR (NOTEBOOK OU DESKTOP) + SISTEMA OPERACIONAL + OFFICE | B18: 1 | C18: =ROUND(AVERAGE(E5:E6),2) -> 350
A20: IMPRESSORAS
A21: TIPO | B21: Quantidade (a) | C21: Valor (b)
A23: Impressora A4 (Multifuncional a jato de tinta) | B23: 1 | C23: =E7 -> 740
A24: Impressora A3 | B24: 1 | C24: =E8 -> 810
A27: APLICATIVOS
A28: TIPO | B28: Quantidade | C28: Valor Médio
A30: Aplicativo Gráfico / Web - Uma única Licença | B30: 1 | C30: =+F11 -> 37.5
A31: Aplicativos de planejamento e gerenciamento (Auto CAD Ultimate e MS- PROJECT) - Uma única licença | B31: 1 | C31: =+F12 -> 284.38

Sheet Lista Equipamentos Previstos (hidden)
B61: Descrição | E61: Unid | F61: Qtd.
B62: F.1 - Veículos
C63: Sedan - 71 a 115 CV | E63: veic. | F63: 7
C64: Caminhonete Pick-Up - 140A 165 CV | E64: veic. | F64: 2
B65: F.2- Equipamentos
C66: Instrumental de Topografia | E66: equip. | F66: 5
C67: GPS | E67: equip. | F67: 5
B68: * | C68: Computador (Notebook ou Desktop e Software Operacional + Office) | E68: equip. | F68: 19
B69: * | C69: Impressora A4 | E69: equip. | F69: 5
B70: * | C70: Impressora A3 | E70: equip. | F70: 2
B71: * | C71: Aplicativo Orçamento (licenças) | E71: equip. | F71: 6
B72: * | C72: Aplicativo Gráfico / Web | E72: equip. | F72: 1
B73: * | C73: Aplicativo Gráfico para Desenho Técnico (Auto CAD Ultimate / Civil 3d) | E73: equip. | F73: 12
B74: * | C74: Aplicativos de planejamento e gerenciamento (MS-Project) | E74: equip. | F74: 10
B75: F.3- Instalações e Mobiliário
C76: Escritório | E76: unid. | F76: 5
C77: Alojamento p/ pessoal | E77: unid. | F77: 0
C78: Mobiliário p/ Escritório | E78: unid. | F78: 5
C79: Mobiliário de Alojamento p/ pessoal | E79: unid. | F79: 0
B80: F.4 - Serviços Gráficos
E81: unid. | F81: 1

Sheet PFS - Resumo Orçamento
A5: PROPOSTA FINANCEIRA DE SERVIÇOS NÃO DESONERADO | H5: CODIGO:
H6: PFS
A7: SERVIÇOS DE APOIO À FISCALIZAÇÃO DAS OBRAS E SERVIÇOS DE ENGENHARIA PARA IMPLANTAÇÃO DE SISTEMA INTEGRADO DE ABASTECIMENTO DE ÁGUA DAS LOCALIDADES ENTRE JUNCO E CURRAL VELHO, NA ZONA RURAL DOS MUNICÍPIOS DE JUAZEIRO E CAMPO FORMOSO, NO ESTADO DA BAHIA | H7: DATA BASE: Outubro/2023
A9: DISCRIMINAÇÃO | F9: VALOR (R$)
F10: PARCIAL (R$) | H10: TOTAL (R$)
A11: A - EQUIPE TÉCNICA | H11: =SUM(F12:G13) -> 378862.2
A12: A.1 - Pessoal de Nível Superior | F12: ='PFS- I- Orçam Base'!K13 -> 240167.28
A13: A.2 - Pessoal de Nível Técnico | F13: ='PFS- I- Orçam Base'!K16 -> 138694.92
A14: B - ENCARGOS SOCIAIS | H14: =F15 -> 376349.3
A15: Valor | F15: ='PFS- I- Orçam Base'!K23 -> 376349.3
A16: C - CUSTOS ADMINISTRATIVOS | H16: =F17 -> 37886.22
A17: Taxas | D17: ='PFS_VII_Det. Custos Adm'!F36*100 -> 10 | E17: % do item "A" | F17: ='PFS- I- Orçam Base'!K26 -> 37886.22
A18: D - DESPESAS GERAIS | H18: =SUM(F19:G24) -> 413889.71
A19: D.1 - VEÍCULOS | F19: ='PFS- I- Orçam Base'!K28 -> 297007.2
A20: D.2 - EQUIPAMENTOS | F20: ='PFS- I- Orçam Base'!K29 -> 12536.64
A21: D.3 - ESCRITÓRIO | F21: ='PFS- I- Orçam Base'!K30 -> 68364.72
A22: D.4 - DIÁRIAS | F22: ='PFS- I- Orçam Base'!K31 -> 7851.6
A23: D.5 - SERVIÇOS GRÁFICOS | F23: ='PFS- I- Orçam Base'!K32 -> 2415.6
A24: D.6 - SERVIÇOS GEOTÉCNICOS | F24: ='PFS- I- Orçam Base'!K33 -> 25713.95
A25: I - CUSTOS DIRETOS (A+B+C+D) | H25: =SUM(H11,H14,H16,H18) -> 1206987.43
A26: II - REMUNERAÇÃO DA EMPRESA | H26: =SUM(F27) -> 96558.99
A27: Taxas | D27: 8 | E27: % do item "I" | F27: ='PFS- I- Orçam Base'!K38 -> 96558.99
A28: III - DESPESAS FISCAIS | H28: =SUM(F29) -> 216649.41
A29: Taxas | D29: ='PFS_VIII_Desp Fiscais'!G40 -> 16.62 | E29: % do item "I+II" | F29: ='PFS- I- Orçam Base'!K39 -> 216649.41
A30: TOTAL DO ORÇAMENTO I+II+III | H30: =SUM(H25,H26,H28) -> 1520195.83
A31: PRAZO = 18 meses
A33: Responsável pelas informações:
A35: Joamar Mendonça de Carvalho
A36: Analista em Desenvolvimento Regional
A37: Cadastro nº 90280-2
A38: AR/GSA/UAS – CODEVASF

Sheet Resumo Orç (BRANCO) (hidden)
A1: RESUMO DE ORÇAMENTO REFERENCIAL SERVIÇOS DE CONSULTORIA
A2: CONTRATAÇÃO DE EMPRESA ESPECIALIZADA PARA PRESTAÇÃO DOS SERVIÇOS DE SUPERVISÃO DA ELABORAÇÃO DOS PROJETOS BÁSICO E EXECUTIVO E DA EXECUÇÃO DAS OBRAS DE DUAS PONTES NA BR-425/RO (RIO ARARAS E RIO RIBEIRÃO) Rodovia: BR - 425/RO Trecho: Entr. BR-364(B) – Fronteira Brasil/Bolívia (Guajará Mirim/RO) Subtrecho: Entr. BR-364(B) – Fronteira Brasil/Bolívia (Guajará Mirim/RO Segmento: km 51,70 - Ponte sobre o Rio Araras km 79,70 - Ponte sobre o Rio Ribeirão Extensão: 105,00 m - Ponte sobre o Rio Araras 110,00 m - Ponte sobre o Rio Ribeirão | H2: DATA BASE: JULHO/2020
A5: DISCRIMINAÇÃO | F5: VALOR (R$)
F6: PARCIAL (R$) | H6: TOTAL (R$)
A7: A - EQUIPE TÉCNICA | H7: =SUM(F8:G10) -> 0
C8: A.1 - Pessoal de Nível Superior | F8: 0
C9: A.2 - Pessoal de Nível Técnico | F9: 0
C10: A.3 - Pessoal Nível Auxiliar | F10: 0
A11: B - CONSULTORIA ESPECIAL | F11: 0 | H11: =SUM(F11) -> 0
A12: C - ENCARGOS SOCIAIS | H12: =F13 -> 0
C13: Taxas | D13: 84.04 | E13: % do item "A" | F13: =H7*D13% -> 0
A14: D- ENCARGOS SOCIAIS - CONSULTOR ESPECIAL - PJ | H14: =SUM(F15) -> 0
C15: Taxas | D15: 20 | E15: % do item "B" | F15: =H11*D15% -> 0
A16: E - CUSTOS ADMINISTRATIVOS | H16: =SUM(F17) -> 0
C17: Taxas | D17: 30 | E17: % do item "A" | F17: =TRUNC(H7*D17%,2) -> 0
A18: F - DESPESAS GERAIS | H18: =SUM(F19:G23) -> 0
A19: F.1 - VEÍCULOS | F19: 0
A20: F.2 - EQUIPAMENTOS | F20: 0
A21: F.3 - IMOVÉIS | F21: 0
A22: F.4 - MOBILIÁRIO | F22: 0
A23: F.5 - ENSAIOS ESPECIAIS | F23: 0
A24: I - CUSTOS DIRETOS (A+B+C+D+E+F) | H24: =TRUNC(SUM(H7,H11,H12,H14,H16,H18),2) -> 0
A25: II - REMUNERAÇÃO DA EMPRESA | H25: =SUM(F26) -> 0
C26: Taxas | D26: 12 | E26: % do item "I" | F26: =(H24*D26%) -> 0
A27: III - DESPESAS FISCAIS | H27: =SUM(F28) -> 0
C28: Taxas | D28: 16.62 | E28: % do item "I+II" | F28: =SUM(H24:I25)*D28% -> 0
A29: TOTAL DO ORÇAMENTO I+II+III | H29: =SUM(H24,H25,H27) -> 0
A30: PRAZO = 720 .d.c

Sheet PFS- I- Orçam Base
B6: Orçamento Base - NÃO DESONERADO | K6: CODIGO:
K7: PFS-I
B8: SERVIÇOS DE APOIO À FISCALIZAÇÃO DAS OBRAS E SERVIÇOS DE ENGENHARIA PARA IMPLANTAÇÃO DE SISTEMA INTEGRADO DE ABASTECIMENTO DE ÁGUA DAS LOCALIDADES ENTRE JUNCO E CURRAL VELHO, NA ZONA RURAL DOS MUNICÍPIOS DE JUAZEIRO E CAMPO FORMOSO, NO ESTADO DA BAHIA | K8: DATA BASE: Outubro/2023
B10: Descrição | D10: Código | E10: Unid | F10: Qtd. | G10: Participação Mensal Média | H10: Prazo (meses) | I10: Qtde Total Mês | J10: Preço Unitário (R$/Mês) | K10: Preço Total (R$)
B11: A - Pessoal | D11: Nível Funcional | F11: a | G11: b | H11: c | I11: d=a*b*c | J11: e | K11: f=d*e
F12: SUBTOTAL A = (A1+A2) | K12: =SUM(K13,K16,) -> 378862.2
B13: A.1 - Nível Superior | K13: =K14+K15 -> 240167.28
B14: Engenheiro | D14: ='PFS_II Equipe'!B12 -> P9812 | E14: mês | F14: 1 | G14: 1 | H14: 18 | I14: =F14*G14*H14 -> 18 | J14: ='PFS_II Equipe'!E12 -> 12570.64 | K14: =TRUNC(I14*J14,2) -> 226271.52
B15: Pedagogo Pleno | D15: ='PFS_II Equipe'!B13 -> P8130 | E15: mês | F15: 1 | G15: 1 | H15: 4 | I15: =F15*G15*H15 -> 4 | J15: ='PFS_II Equipe'!E13 -> 3473.94 | K15: =TRUNC(I15*J15,2) -> 13895.76
B16: A.2 - Nível Técnico / Auxiliar | K16: =SUM(K17:K22) -> 138694.92
B17: Técnico de obras | D17: ='PFS_II Equipe'!B14 -> P9867 | E17: mês | F17: 1 | G17: 1 | H17: 18 | I17: =F17*G17*H17 -> 18 | J17: ='PFS_II Equipe'!E14 -> 3151.6 | K17: =TRUNC(I17*J17,2) -> 56728.8
B18: Topógrafo | D18: ='PFS_II Equipe'!B15 -> P9949 | E18: mês | F18: 1 | G18: 1 | H18: 4 | I18: 4 | J18: ='PFS_II Equipe'!E15 -> 3825.8 | K18: 15303.2
B19: Auxiliar de topografia | D19: ='PFS_II Equipe'!B16 -> P9950 | E19: mês | F19: 1 | G19: 1 | H19: 4 | I19: 4 | J19: ='PFS_II Equipe'!E16 -> 2255 | K19: 9020
B20: Auxiliar administrativo | D20: ='PFS_II Equipe'!B17 -> P9806 | E20: mês | F20: 1 | G20: 1 | H20: 18 | I20: 18 | J20: ='PFS_II Equipe'!E17 -> 2255 | K20: 40590
B21: Auxiliar / Operacional (foceiro) | D21: ='PFS_II Equipe'!B18 -> P9814 | E21: mês | F21: 1 | G21: 1 | H21: 4 | I21: 4 | J21: ='PFS_II Equipe'!E18 -> 1432.32 | K21: 5729.28
B22: Desenhista / Cadista | D22: ='PFS_II Equipe'!B19 -> P9848 | E22: mês | F22: 1 | G22: 1 | H22: 4 | I22: 4 | J22: ='PFS_II Equipe'!E19 -> 2830.91 | K22: 11323.64
B23: B - Encargos Sociais (_% de A) | F23: Subtotal B | K23: =F24+F25 -> 376349.3
B24: Nível superior | F24: =('PFS_II Equipe'!J12-'PFS_II Equipe'!I12)+('PFS_II Equipe'!J13-'PFS_II Equipe'!I13) -> 201837.02
B25: Nível médio | F25: =SUM('PFS_II Equipe'!J14:J19)-SUM('PFS_II Equipe'!I14:I19) -> 174512.28
B26: C - Custos Administrativos (_% de A) | D26: ='PFS_VII_Det. Custos Adm'!F36 -> 0.1 | F26: Subtotal C | K26: =ROUND(D26*K12,2) -> 37886.22
B27: D - Despesas Gerais
B28: D.1 - Veículos | K28: ='PFS_VI_Desp. Gerais'!I13+'PFS_VI_Desp. Gerais'!I14 -> 297007.2
B29: D.2 - Equipamentos | K29: ='PFS_VI_Desp. Gerais'!I16 -> 12536.64
B30: D.3 - Escritorio | K30: ='PFS_VI_Desp. Gerais'!I18+'PFS_VI_Desp. Gerais'!I19+'PFS_VI_Desp. Gerais'!I20 -> 68364.72
B31: D.4 - Diárias | K31: ='PFS_VI_Desp. Gerais'!I22 -> 7851.6
B32: D.5 -Serviços Gráficos | K32: ='PFS_VI_Desp. Gerais'!I24 -> 2415.6
B33: D.6 -Serviços Geotécnicos | K33: ='PFS_VI_Desp. Gerais'!I26 -> 25713.95
F34: Subtotal D | K34: =SUM(K28,K29,K30,K31,K32,K33) -> 413889.71
B35: TOTAL DO ITEM I - CUSTOS DIRETOS | F35: ( A + B + C+ D ) | K35: =SUM(K12,K23,K26,K34) -> 1206987.43
B37: II - CUSTOS INDIRETOS
B38: II.1 - Remuneração da Empresa (_% de I) | D38: ='PFS - Resumo Orçamento'!D27/100 -> 0.08 | F38: Subtotal II.1 | K38: =TRUNC(K35*D38,2) -> 96558.99
B39: II.2 - Despesas Fiscais [(% de I + II.1)] | D39: ='PFS_VIII_Desp Fiscais'!G40/100 -> 0.1662 | F39: Subtotal II.2 | K39: =TRUNC(D39*(K35+K38),2) -> 216649.41
B40: TOTAL DO ITEM II - CUSTOS INDIRETOS | D40: ( II.1 + II.2 ) | K40: =SUM(K38:K39) -> 313208.4
B42: TOTAL GERAL ( I + II ) | K42: =SUM(K35,K40) -> 1520195.83

Sheet orçam (BRANCO) (hidden)
C5: DEPARTAMENTO NACIONAL DE INFRAESTRUTURA DE TRANSPORTES
C7: CONTRATAÇÃO DE EMPRESA ESPECIALIZADA PARA PRESTAÇÃO DOS SERVIÇOS DE SUPERVISÃO DA ELABORAÇÃO DOS PROJETOS BÁSICO E EXECUTIVO E DA EXECUÇÃO DAS OBRAS DE DUAS PONTES NA BR-425/RO (RIO ARARAS E RIO RIBEIRÃO). ESTADO: RONDÔNIA LOTE: ÚNICO Prazo: 720 d.c
A9: ANEXO II | C9: ANEXO I
C10: ORÇAMENTO REFERENCIAL
L11: DATA BASE: jul/2020
C13: Descrição | E13: Código | F13: Unid | G13: Qtd. | H13: Participação Mensal Média | I13: Prazo (meses) | J13: Qtde Total Mês | K13: Preço Unitário (R$/Mês) | L13: Preço Total (R$)
C14: Pessoal | E14: Nível Funcional | G14: a | H14: b | I14: c | J14: d=a*b*c | K14: e | L14: f=d*e
G15: SUBTOTAL A = (A1+A2+A3) | L15: 0
C16: A.1 - NÍVEL SUPERIOR | L16: =SUM(L17:L19) -> 0
C17: Engenheiro Sênior/Obras de Arte Especiais | E17: P0 | F17: mês | G17: 1 | H17: 1 | I17: 24 | J17: =G17*H17*I17 -> 24
C18: Engenheiro Ambiental | E18: P4 | F18: mês | G18: 1 | H18: 1 | I18: 24 | J18: 24
C19: Arqueólogo | E19: P4 | F19: mês | G19: 1 | H19: 1 | I19: 24 | J19: 24
C20: A.2 - NÍVEL TÉCNICO | L20: =SUM(L21:L25) -> 0
C21: Técnico Pleno (Auxiliar de Engenheiro / Inspetor de Campo) - Assessoria na Análise de Projetos e acompanhamento de obras | E21: T2 | F21: mês | G21: 1 | H21: 1 | I21: 24 | J21: =G21*H21*I21 -> 24
C22: Técnico Pleno (Topógrafo) | E22: T2 | F22: mês | G22: 1 | H22: 1 | I22: 24 | J22: =G22*H22*I22 -> 24
C23: Técnico Auxiliar (Auxiliar de Topografia) | E23: T4 | F23: mês | G23: 1 | H23: 1 | I23: 24 | J23: =G23*H23*I23 -> 24
C24: Técnico Pleno (Laboratorista) | E24: T2 | F24: mês | G24: 1 | H24: 1 | I24: 24 | J24: =G24*H24*I24 -> 24
C25: Técnico Auxiliar (Auxiliar de Laboratório) | E25: T4 | F25: mês | G25: 2 | H25: 1 | I25: 24 | J25: =G25*H25*I25 -> 48
C26: A.3 - NÍVEL AUXILIAR | L26: =SUM(L27:L29) -> 0
C27: Secretária | E27: A1 | F27: mês | G27: 1 | H27: 1 | I27: 24 | J27: =G27*H27*I27 -> 24
C28: Auxiliar de Escritório (Operador de Microcomputador) | E28: A2 | F28: mês | G28: 0 | H28: 1 | I28: 24 | J28: =G28*H28*I28 -> 0
C29: Motorista | E29: A2 | F29: mês | H29: 1 | I29: 24 | J29: =G29*H29*I29 -> 0
C30: B - CONSULTORIA ESPECIAL | L30: =SUM(L31:L31) -> 0
C31: Consultor Especial | E31: CM | F31: mês | G31: 0 | H31: 0.15 | I31: 24 | J31: =G31*H31*I31 -> 0
C32: C - Encargos Sociais (_% de A) | E32: 0.8404 | G32: Subtotal C | L32: =TRUNC(L15*$E$32,2) -> 0
C33: D - E. Sociais - Consultor Especial - PJ (_% de B) | E33: 0.2 | G33: Subtotal D | L33: =TRUNC(L30*E33,2) -> 0
C34: E - Custos Administrativos (_% de A) | E34: 0.3 | G34: Subtotal E | L34: =TRUNC(L15*E34,2) -> 0
C35: F- Despesas Gerais
C36: F.1 - Veículos | L36: =SUM(L37:L39) -> 0
C37: Sedan - 71 a 115 CV | F37: veic. | G37: 2 | H37: 1 | I37: 24 | J37: =G37*H37*I37 -> 48
C38: Caminhonete - 71 a 115cv | F38: veic. | G38: 1 | H38: 1 | I38: 24 | J38: =G38*H38*I38 -> 24
C39: Caminhão para Viga Benkelman | F39: veic. | G39: 1 | H39: 1 | I39: 1 | J39: =G39*H39*I39 -> 1
C40: F.2- Equipamentos | L40: =SUM(L41:L45) -> 0
C41: Instrumental de Topografia | F41: equip. | G41: 1 | H41: 1 | I41: 24 | J41: =G41*H41*I41 -> 24
C42: Laboratório de Concreto | F42: equip. | G42: 1 | H42: 1 | I42: 20 | J42: =G42*H42*I42 -> 20
C43: Laboratório de Solos | F43: equip. | G43: 1 | H43: 1 | I43: 2 | J43: =G43*H43*I43 -> 2
C44: Laboratório de Betume | F44: equip. | G44: 1 | H44: 1 | I44: 1 | J44: =G44*H44*I44 -> 1
C45: Viga Benkelman | F45: equip. | G45: 1 | H45: 1 | I45: 1 | J45: =G45*H45*I45 -> 1
C46: F.3- Imóveis | L46: =SUM(L47:L49) -> 0
C47: Escritório | F47: unid. | G47: 1 | H47: 1 | I47: 24 | J47: =G47*H47*I47 -> 24
C48: Casa para Engenheiro | F48: unid. | G48: 1 | H48: 1 | I48: 24 | J48: =G48*H48*I48 -> 24
C49: Alojamento para Pessoal | F49: unid. | G49: 1 | H49: 1 | I49: 24 | J49: =G49*H49*I49 -> 24
C50: F.4- Mobiliário | L50: =SUM(L51:L52) -> 0
C51: Mobiliário de Escritório | F51: unid. | G51: 1 | H51: 1 | I51: 24 | J51: =G51*H51*I51 -> 24
C52: Mobiliário de Alojamento p/ Pessoal | F52: unid. | G52: 1 | H52: 1 | I52: 24 | J52: =G52*H52*I52 -> 24
C53: F.5 - Ensaios Especiais | L53: =SUM(L54) -> 0
C54: Ensaios Especiais | F54: UD | G54: 0 | H54: 1 | I54: 1 | J54: =G54*H54*I54 -> 0 | K54: =TRUNC(L15*1%,2) -> 0 | L54: =TRUNC(J54*K54,2) -> 0
G55: Subtotal F | L55: =SUM(L36,L40,L46,L50,L53) -> 0
C56: TOTAL DO ITEM I - CUSTOS DIRETOS | G56: ( A + B + C+ D + E + F ) | L56: =SUM(L15,L30,L32,L33,L34,L55) -> 0
C58: II - CUSTOS INDIRETOS
C59: II.1 - Remuneração da Empresa (_% de I) | E59: 0.12 | G59: Subtotal II.1 | L59: =TRUNC(L56*E59,2) -> 0
C60: II.2 - Despesas Fiscais [(_% de I + II.1)] | E60: 0.1662 | G60: Subtotal II.2 | L60: =SUM(L56,L59)*E60 -> 0
C61: TOTAL DO ITEM II - CUSTOS INDIRETOS | E61: ( II.1 + II.2 ) | L61: =SUM(L59:L60) -> 0
C63: TOTAL GERAL ( I + II ) | L63: =SUM(L56,L61) -> 0
C64: Limites Máximos Admissíveis: C = 84,04% D= 20,00% E= 30,00% II.1 = 12,00% II.2 = 16,62% Tempo Estimado de Realização dos Serviços 720.d.c | J64: CUSTO ESTIMADO MENSAL | L64: =L63/J17 -> 0
D71: VALORES REFERENCIAIS:
D72: Tabela de Consultoria do DNIT, instituída por meio da Instrução de Serviço DG nº 03/2012.
D73: Percentuais de encargos sociais e custos administrativos, em conformidade com recomendação constante do Ofício nº 535/2011-TCU/SECOB-1
D74: Os valores referenciais para veículos envolvem aluguel e combustível.
C78: CARGO | E78: NIVEL FUNCIONAL | G78: QUALIFICAÇÃO EXIGIDA | K78: FUNÇÃO CONTEMPLADA
D79: CONSULTOR ESPECIAL | E79: CM | G79: Engenheiro ou Profissional com, no mínimo, Doutorado na área de interesse, e/ou Experiência Profissional >= 15 anos | K79: Especialista em Engenharia (Todas) Especialista em Arquitetura Especialista na Área Social Especialista na Área Ambiental Especialista na Área Financeira Especialista na Área Administrativa Especialista na Área Contábil Especialista na Área Economia
D80: COORDENADOR | E80: P0 | G80: Engenheiro ou Profissional - Experiência Profissional >= 10 anos | K80: Coordenador Geral Coordenador de Gerenciamento. Coordenador de Fiscalização Coordenador de Planejamento Administrador de Contratos Coordenador de Apoio Assistencial
D81: ENGENHEIRO/PROFISSIONAL SÊNIOR | E81: P1 | G81: Experiência Profissional >= 8 anos | K81: Profissional em : Engenharia (todas) Arquitetura e Urbanismo Profissional ärea Social (serviço social, ciências sociais, Sociólogo, etc) Profissional Área Ambiental Contador Administrador Economista Área de Comunicação Social (Jornalista, Assessor de Comunicação, etc.) Profissionais ärea de T.I (Programador, Analista de Sistema) Geologia Biologia Área Jurídica (Advogado, Assessor jurídico, etc) Topografia
D82: ENGENHEIRO/PROFISSIONAL PLENO | E82: P2 | G82: Experiência Profissional >= 5 anos
D83: ENGENHEIRO/PROFISSIONAL JÚNIOR | E83: P3 | G83: Experiência Profissional >= 2 anos
D84: ENGENHEIRO/PROFISSIONAL AUXILIAR | E84: P4 | G84: Formação 3º Grau
D85: TÉCNICO SÊNIOR | E85: T2 | G85: 2º Grau Completo - Experiência Profissional >= 10 anos | K85: Auxiliar de Engenharia Inspetor de Campo Fiscal de Campo Técnico em Edificações Técnico em estradas Técnico em Segurança do Trabalho Técnico em Contabilidade Técnico em Medicina do Trabalho Laboratorista (Chefe, Auxiliar) Topógrafo (Chefe, Auxiliar) Telefonista Escriturário Auxiliares (Escritório, Administrativo, etc)
D86: TÉCNICO SÊNIOR | E86: T1 | G86: 2º Grau Completo - Experiência Profissional >= 8 anos
D87: TÉCNICO PLENO | E87: T2 | G87: 2º Grau Completo - Experiência Profissional >= 5 anos
D88: TÉCNICO JÚNIOR | E88: T3 | G88: 2º Grau Completo - Experiência Profissional >= 2 anos
D89: TÉCNICO AUXILIAR | E89: T4 | G89: Formação - 2º Grau Completo
D90: TÉCNICO | E90: T5 | G90: Formação Técnica e/ou Experiência Profissional | K90: Calculista Desenhista / Cadista Operador de Computador
D91: CHEFE DE ESCRITÓRIO | E91: A0 | G91: 2º Grau Completo - Experiência Profissional >= 5 anos | K91: Chefe de Escritório Secretária Executiva
D92: SECRETÁRIA (O) | E92: A1 | G92: Experiência Profissional | K92: Secretária
D93: DATILÓGRAFO/MOTORISTA | E93: A2 | G93: Experiência Profissional | K93: motorista
D94: SERVENTES / CONTÍNUOS | E94: A3 | G94: Experiência Profissional | K94: Aux. De Serviços Gerais Copeiro Zelador
D95: VIGIAS | E95: A4 | G95: Experiência Profissional | K95: Vigias

Sheet PFS_II Equipe
A4: EQUIPE | J4: CODIGO:
J5: PFS-II
J6: DATA BASE: Outubro/2023
A8: =[35]PFS!A8 -> NOME DA CONSULTORA: | E8: OBJETO: | J8: EDITAL:
A10: CATEGORIA FUNCIONAL | B10: CATEGORIA | C10: TOTAL DE HOMENS | D10: TOTAL DE MESES | E10: SALÁRIO MENSAL SEM ENCARGOS SOCIAIS | F10: ENCARGOS SOCIAIS TOTAIS (%) | G10: ENCARGOS SOCIAIS TOTAIS (R$) | H10: SALÁRIO MENSAL COM ENCARGOS SOCIAIS | I10: CUSTO TOTAL CATEGORIAS SEM ENCARGOS | J10: CUSTO TOTAL CATEGORIAS COM ENCARGOS
A12: Engenheiro | B12: P9812 | C12: 1 | D12: ='PFS- I- Orçam Base'!H14 -> 18 | E12: 12570.64 | F12: 0.8249 | G12: =H12-E12 -> 10369.25 | H12: 22939.89 | I12: =ROUND(C12*D12*E12,2) -> 226271.52 | J12: =ROUND(C12*D12*H12,2) -> 412918.02
A13: Pedagogo pleno | B13: P8130 | C13: 1 | D13: 4 | E13: 3473.94 | F13: 1.0932 | G13: =H13-E13 -> 3797.63 | H13: 7271.57 | I13: =ROUND(C13*D13*E13,2) -> 13895.76 | J13: =ROUND(C13*D13*H13,2) -> 29086.28
A14: Técnico de obras | B14: P9867 | C14: 1 | D14: ='PFS- I- Orçam Base'!H17 -> 18 | E14: 3151.6 | F14: 1.1917 | G14: 3755.68 | H14: 6907.28 | I14: 56728.8 | J14: 124331.04
A15: Topógrafo | B15: P9949 | C15: 1 | D15: ='PFS- I- Orçam Base'!H18 -> 4 | E15: 3825.8 | F15: 1.1156 | G15: 4268.1 | H15: 8093.9 | I15: 15303.2 | J15: 32375.6
A16: Auxiliar de topografia | B16: P9950 | C16: 1 | D16: ='PFS- I- Orçam Base'!H19 -> 4 | E16: 2255 | F16: 1.3634 | G16: 3074.45 | H16: 5329.45 | I16: 9020 | J16: 21317.8
A17: Auxiliar administrativo | B17: P9806 | C17: 1 | D17: ='PFS- I- Orçam Base'!H20 -> 18 | E17: 2255 | F17: 1.3622 | G17: 3071.66 | H17: 5326.66 | I17: 40590 | J17: 95879.88
A18: Auxiliar / Operacional (fioceiro) | B18: P9814 | C18: 1 | D18: 4 | E18: 1432.32 | F18: 1.5065 | G18: 2157.74 | H18: 3590.06 | I18: 5729.28 | J18: 14360.24
A19: Desenhista / Cadista | B19: P9848 | C19: 1 | D19: 4 | E19: 2830.91 | F19: 1.2027 | G19: 3404.75 | H19: 6235.66 | I19: 11323.64 | J19: 24942.64
A20: TOTAIS | C20: =SUM(C12:C19) -> 8 | D20: =SUM(D12:D19) -> 74 | I20: =SUM(I12:I19) -> 378862.2 | J20: =SUM(J12:J19) -> 755211.5
A21: NOME DO INFORMANTE: | H21: QUALIFICAÇÃO:
A23: ASSINATURA: | I23: DATA:
A25: OBSERVAÇÃO:
A26: Encargos Sociais Totais: Composto por Encargos Sociais, Encargos Complementares (EPI, Ferramenta, Transporte e Exame Ocupacional) e Encargos Adicionais (Cesta Básica, Assistência Médica e Seguro de Vida).
A27: Fonte dos Encargos Sociais Totais: CGCIT - Sistema de Custos Referenciais de Obras - Sicro/DNIT - Bahia - Abril/2023 - Sem Desoneração.

Sheet PFS_III_Diárias
A4: DIÁRIAS | H4: CODIGO:
H5: PFS-III
H6: DATA BASE: Outubro/2023
A8: =[35]PFS!A8 -> NOME DA CONSULTORA: | E8: OBJETO:
A10: CATEGORIA FUNCIONAL | B10: CATEGORIA | C10: TOTAL DE HOMENS | D10: TOTAL DE MESES | E10: DIÁRIAS
E11: DIAS / MÊS | F11: CUSTO | G11: CUSTO TOTAL | H11: CUSTO TOTAL
E12: PERNOITE | F12: UNITÁRIO | G12: P/ MÊS | H12: P/ CONTRATO
A14: Engenheiro | B14: P9812 | C14: 1 | D14: ='PFS- I- Orçam Base'!H14 -> 18 | E14: 1 | F14: 218.1 | G14: =C14*E14*F14 -> 218.1 | H14: =D14*G14 -> 3925.8
A15: Pedagogo pleno | B15: P8130 | C15: 1 | D15: ='PFS- I- Orçam Base'!H15 -> 4 | G15: =C15*E15*F15 -> 0 | H15: =D15*G15 -> 0
A16: Técnico de obras | B16: P9867 | C16: 1 | D16: ='PFS- I- Orçam Base'!H17 -> 18 | E16: 1 | F16: 218.1 | G16: =C16*E16*F16 -> 218.1 | H16: 3925.8
A17: Topógrafo | B17: P9949 | C17: 1 | D17: ='PFS- I- Orçam Base'!H18 -> 4 | G17: =C17*E17*F17 -> 0 | H17: 0
A18: Auxiliar de topografia | B18: P9950 | C18: 1 | D18: ='PFS- I- Orçam Base'!H19 -> 4 | G18: 0 | H18: 0
A19: Auxiliar administrativo | B19: P9806 | C19: 1 | D19: ='PFS- I- Orçam Base'!I20 -> 18 | G19: 0 | H19: 0
A20: Auxiliar / Operacional (foceiro) | B20: P9814 | C20: 1 | D20: ='PFS- I- Orçam Base'!I21 -> 4 | G20: 0 | H20: 0
A21: Desenhista / Cadista | B21: P9848 | C21: 1 | D21: ='PFS- I- Orçam Base'!I22 -> 4 | G21: 0 | H21: 0
A22: TOTAL | C22: =SUM(C14:C21) -> 8 | D22: =SUM(D14:D21) -> 74 | E22: =SUM(E14:E21) -> 2 | G22: =SUM(G14:G21) -> 436.2 | H22: =SUM(H14:H21) -> 7851.6
A23: NOME DO INFORMANTE:
A25: ASSINATURA:
A28: Observação: Utilizado tabela de diárias da Codevasf

Sheet PFS_IV_Serviços Gráficos
A4: SERVIÇOS GRÁFICOS | F4: CODIGO:
F5: PFS-IV
F6: DATA BASE: Outubro/2023
A8: =[35]PFS!A8 -> NOME DA CONSULTORA:
A10: MATERIAL | B10: UNIDADES POR MÊS | D10: CUSTO ITEM | F10: CUSTO MENSAL
A11: 1. Relatorios (30 folhas, capa plastica, espiral) | B11: 2 | D11: 17.1 | F11: =ROUND(B11*D11,2) -> 34.2
A12: 2. Plantas gráficas (Tamanho A0) | B12: 10 | D12: 10 | F12: =ROUND(B12*D12,2) -> 100
A13: TOTAL | F13: =SUM(F11:F12) -> 134.2
A14: NOME DO INFORMANTE:
A16: ASSINATURA:

Sheet PFS_V_Serviços Geotécnicos
A5: SERVIÇOS GEOTÉCNICOS | G5: CODIGO:
G6: PFS-V
A7: NOME DA CONSULTORA:
A9: PROJETO: | C9: OBJETO: | G9: EDITAL:
A11: DISCRIMINAÇÃO | D11: UNID. | E11: QUANT. | F11: PREÇOS (R$)
F12: UNITÁRIO | G12: TOTAL
A13: 1. - SONDAGEM
A14: 1.1 - Sondagem Rotativa
A15: - Mobilização e desmobilização de equipamentos | D15: equip
A16: - Em granitos, gnaisses, quartzitos e rochas afins
A17: - Ø N | D17: m
A18: - Ø B | D18: m
A19: - Ø N (sondagem em solo) | D19: m
A20: - Deslocamento e instalação do equipamento
A21: - 0 a 200 metros | D21: unid.
A22: - 201 a 500 metros | D22: unid.
A23: - Acima de 500 metros | D23: unid.
A24: 1.2 - Sondagem a Percussão
A25: - Mobilização e desmobilização de equipamentos | D25: equip
A26: - Sondagem à percussão com SPT | D26: m | E26: 8 | F26: 140.97 | G26: =E26*F26 -> 1127.76
A27: - Deslocamento e instalação de equipamento
A28: - 0 a 200 metros | D28: unid.
A29: - 201 a 500 metros | D29: unid.
A30: - Acima de 500 metros | D30: unid.
A31: 2. - SONDAGEM SÍSMICA DE REFRAÇÃO | D31: km
A32: 3. - SONDAGEM A TRADO (4") | D32: m | E32: 250 | F32: 95.86 | G32: 23965
A33: 4. - POÇOS DE INSPEÇÃO | D33: m
A34: 5. - ENSAIOS
A35: 5.1 - Ensaios em solos
A36: 5.1.1 - Umidade Natural | D36: ensaio
A37: 5.1.2 - Densidade Natural | D37: ensaio
A38: 5.1.3 - Limite de Liquidez | D38: ensaio
A39: 5.1.4 - Limite de Plasticidade | D39: ensaio
A40: 5.1.5 - Granulometria por Peneiramento | D40: ensaio
A41: 5.1.6 - Granulometria por Sedimentação | D41: ensaio
A42: 5.1.7 - Ensaio compactação Proctor Normal | D42: ensaio
A43: 5.1.8 - Ensaio compactação Proctor Intermediario | D43: ensaio
A44: 5.1.9 - Ensaio compactação Proctor Modificado | D44: ensaio
A45: 5.1.9.1 | B45: Indice de Suporte California ISC c/3 corpos de prova | D45: ensaio
A46: 5.1.9.2 | B46: Indice de Suporte California ISC c/5 corpos de prova | D46: ensaio
A47: 5.1.8 - Massa Especifica Real dos Grãos | D47: ensaio
A48: 5.1.9 - Adensamento Oedométrico | D48: ensaio
A49: 5.1.10 - Triaxial (UU) não consolidado não drenado | D49: ensaio
A50: 5.1.11 - Triaxial (CU) consolidado - não drenado | D50: ensaio
A51: 5.1.12 - Expansão
A52: 5.1.12..1Ensaio de colapsividade em anéis de adensamento | D52: =D50 -> ensaio
A53: 5.1.12..2Determinação da pressão de expansão | D53: =D52 -> ensaio
A54: 5.1.13 - Dispersão:
A55: 5.1.13.1 - Granulometria Comparativa | D55: ensaio
A56: 5.1.13.2 - Crumb Test | D56: ensaio
A57: 5.1.14. Infiltração | D57: ensaio
A58: 5.1.15 Ensaio de Perda d''agua (05 estágios) | D58: ensaio
A59: 5.1.16 - Análise da Areia:
A60: 5.1.16.1 Análise Química da Areia teor de mat organica | D60: ensaio
A61: 5.1.16.2 Equivalente de Areia | D61: ensaio
A62: 5.1.17- Mineralogia | D62: ensaio
A63: 5.1.18 - Abrasão "Los Angeles " | D63: ensaio
B64: Indice de lamelaridade | D64: ensaio
A65: 5.1.19 - Reatividade Potencial | D65: ensaio
A66: 5.1.20 - Permeabilidade vertical de carga variavel | D66: ensaio
A67: 5.1.21 - Análise físico-química da água | D67: ensaio | E67: 1 | F67: 565.21 | G67: 565.21
A68: 5.1.22 - Análise bacteriológica da água | D68: ensaio | E68: 1 | F68: 55.98 | G68: 55.98
A69: TOTAL DE SERVIÇOS GEOTÉCNICOS | G69: =SUM(G14:G68) -> 25713.95
A70: NOME DO INFORMANTE: | D70: QUALIFICAÇÃO:
A71: ASSINATURA: | F71: DATA:
A72: OBSERVAÇÃO: ORSE mês de referência agosto/2023

Sheet PFS_VI_Desp. Gerais
A4: DESPESAS GERAIS | I4: CODIGO:
I5: PFS-VI
A6: NOME DA CONSULTORA:
A8: =[35]PFS!A10 -> LOCALIZAÇÃO: | D8: OBJETO: | I8: EDITAL:
A10: ITEM | B10: DISCRIMINAÇÃO | F10: UNID. | G10: QUANT. | H10: CUSTOS (R$)
H11: UNITÁRIO | I11: TOTAL
A12: 1 | B12: VEÍCULOS
A13: 1.1 | B13: Picape leve (CÓD. CATMAT 486410) | F13: mês | G13: 18 | H13: 9928.13 | I13: =ROUND(H13*G13,2) -> 178706.34
A14: 1.1 | B14: Carro popular (CÓD. CATMAT 602304) | F14: mês | G14: 18 | H14: 6572.27 | I14: =ROUND(H14*G14,2) -> 118300.86
A15: 2 | B15: EQUIPAMENTOS
A16: 2.1 | B16: Instrumental de Topografia | F16: mês | G16: ='PFS- I- Orçam Base'!H18 -> 4 | H16: 3134.16 | I16: =ROUND(G16*H16,2) -> 12536.64
A17: 3 | B17: ESCRITÓRIO
A18: 3.1 | B18: Aluguel | F18: mês | G18: 18 | H18: 1871.2 | I18: =ROUND(G18*H18,2) -> 33681.6
A19: 3.2 | B19: Mobiliário | F19: mês | G19: 18 | H19: 1532.88 | I19: =ROUND(G19*H19,2) -> 27591.84
A20: 3.3 | B20: Custos diversos | F20: mês | G20: 18 | H20: 393.96 | I20: 7091.28
A21: 4 | B21: DIÁRIAS
A22: 4.1 | B22: Diárias | F22: mês | G22: 18 | H22: =PFS_III_Diárias!G22 -> 436.2 | I22: =ROUND(G22*H22,2) -> 7851.6
A23: 5 | B23: SERVIÇOS GRÁFICOS
A24: 5.1 | B24: Serviços gráficos ( relatórios, cópias, plantas etc) | F24: mês | G24: 18 | H24: ='PFS_IV_Serviços Gráficos'!F13 -> 134.2 | I24: =ROUND(G24*H24,2) -> 2415.6
A25: 6 | B25: SERVIÇOS GEOTÉCNICOS
A26: 6.1 | B26: Serviços geotécnicos | F26: unid. | G26: 1 | H26: =ROUND(I26/G26,2) -> 25713.95 | I26: ='PFS_V_Serviços Geotécnicos'!G69 -> 25713.95
B27: TOTAL DE DESPESAS GERAIS | I27: =SUM(I13:I26) -> 413889.71
B28: NOME DO INFORMANTE: | G28: QUALIFICAÇÃO:
B30: ASSINATURA: | H30: DATA:
A32: OBSERVAÇÃO:

Sheet PFS_VII_Det. Custos Adm
A5: DETALHAMENTO DO CUSTO DE ADMINISTRAÇÃO | F5: CODIGO:
F6: PFS-VII
A7: NOME DA CONSULTORA:
A9: =[36]PFS!A10 -> LOCALIZAÇÃO: | C9: OBJETO:
A11: DISCRIMINAÇÃO | F11: VALORES
F12: %
A13: 1 | B13: Custos da equipe da administração central da empresa consultora (pessoal técnico de apoio e pessoal administrativo não diretamente vinculado à prestação dos serviços) | F13: 0.1
B36: TOTAIS DO CUSTO DE ADMINISTRAÇÃO | F36: =SUM(F13:F35) -> 0.1
A37: NOME DO INFORMANTE: | D37: QUALIFICAÇÃO:
A38: ASSINATURA: | F38: DATA:
A39: OBSERVAÇAO:

Sheet PFS_VIII_Desp Fiscais
A4: DETALHAMENTO DE DESPESAS FISCAIS | G4: CODIGO:
G5: PFS-VIII
A6: NOME DA CONSULTORA:
A8: =[36]PFS!A10 -> LOCALIZAÇÃO: | C8: OBJETO:
A10: DISCRIMINAÇÃO | F10: VALORES
F11: DF % | G11: DF' %
A13: 1 - ISS | F13: 5
A14: 2 - PIS | F14: 1.65
A15: 3 - COFINS | F15: 7.6
A16: 4 - CPRB | F16: 0
A40: TOTAIS DE DESPESAS FISCAIS | F40: =F13+F14+F15+F16 -> 14.25 | G40: =((1/(1-F40%))-1)*100 -> 16.62
A41: NOME DO INFORMANTE: | D41: QUALIFICAÇÃO:
A43: ASSINATURA: | F43: DATA:
A45: Observação:
A46: As despesas fiscais (DF) incidem sobre o total da fatura e não sobre os custos incorridos. Portanto aplicar a seguinte fórmula:
A47: DF' = { [ 1 / ( 1 - DF ) ] - 1 } x 100
A48: ou seja, para o valor máximo de 14,25%, o valor a ser aplicado na composição dos preços será:
A49: DF' = { [ 1 / ( 1 - 0,1425 ) ] - 1 } x 100
A50: DF' =0,1662 ou 16,62%

Sheet PFS_IX_Cron. Físico-Financeiro
A2: CRONOGRAMA FÍSICO-FINANCEIRO | T2: CODIGO:
T3: PFS-IX
A4: PERÍODO | D4: PERÍODO - MESES
A6: MESES ACUMULADOS | D6: 1 | E6: =D6+1 -> 2 | F6: 3 | G6: 4 | H6: 5 | I6: 6 | J6: 7 | K6: 8 | L6: 9 | M6: 10 | N6: 11 | O6: 12 | P6: 13 | Q6: 14 | R6: 15 | S6: 16 | T6: 17 | U6: 18
A7: FÍSICO | B7: Relatórios Mensais | C7: Unid.
A8: FINANC. | B8: PARCIAL | C8: % | D8: =1/18 -> 0.0556 | E8: 0.0556 | F8: 0.0556 | G8: 0.0556 | H8: 0.0556 | I8: 0.0556 | J8: 0.0556 | K8: 0.0556 | L8: 0.0556 | M8: 0.0556 | N8: 0.0556 | O8: 0.0556 | P8: 0.0556 | Q8: 0.0556 | R8: 0.0556 | S8: 0.0556 | T8: 0.0556 | U8: =1/18-0.0008 -> 0.0548
C9: R$ | D9: ='PFS- I- Orçam Base'!K42/'PFS- I- Orçam Base'!H14 -> 84455.32 | E9: =D9 -> 84455.32 | F9: =E9 -> 84455.32 | G9: 84455.32 | H9: 84455.32 | I9: 84455.32 | J9: 84455.32 | K9: 84455.32 | L9: 84455.32 | M9: 84455.32 | N9: 84455.32 | O9: 84455.32 | P9: 84455.32 | Q9: 84455.32 | R9: 84455.32 | S9: 84455.32 | T9: 84455.32 | U9: =T9+0.02 -> 84455.34
B10: ACUMULADO | C10: % | D10: =SUM(D8) -> 0.0556 | E10: =SUM(D10,E8) -> 0.1112 | F10: 0.1668 | G10: 0.2224 | H10: 0.278 | I10: 0.3336 | J10: 0.3892 | K10: 0.4448 | L10: 0.5004 | M10: 0.556 | N10: 0.6116 | O10: 0.6672 | P10: 0.7228 | Q10: 0.7784 | R10: 0.834 | S10: 0.8896 | T10: 0.9452 | U10: 1
C11: R$ | D11: =SUM(D9) -> 84455.32 | E11: =SUM(D11,E9) -> 168910.64 | F11: =SUM(E11,F9) -> 253365.96 | G11: 337821.28 | H11: 422276.6 | I11: 506731.92 | J11: 591187.24 | K11: 675642.56 | L11: 760097.88 | M11: 844553.2 | N11: 929008.52 | O11: 1013463.84 | P11: 1097919.16 | Q11: 1182374.48 | R11: 1266829.8 | S11: 1351285.12 | T11: 1435740.44 | U11: =SUM(T11,U9)+0.05 -> 1520195.83
A14: Nome da Empresa IDENTIFICAÇÃO, QUALIFICAÇÃO E ASSINATURA DA RESPONSÁVEL

Sheet Cron. Físico-Finan (BRANCO) (hidden)
A1: CRONOGRAMA FÍSICO-FINANCEIRO | I1: Data Licitação/Proposta.:
I2: Prazo Inicial: Lote: Único Ref.:MÊS-BASE julho/2020
A3: PÉRIODO | D3: PERÍODO - DIAS
A5: DIAS ACUMULADOS | D5: 30 | E5: =D5+30 -> 60 | F5: =E5+30 -> 90 | G5: 120 | H5: 150 | I5: 180 | J5: 210 | K5: 240 | L5: 270 | M5: 300 | N5: 330 | O5: 360
A6: FÍSICO | B6: Relatórios Mensais | C6: Unid.
A7: FINANCEIRO | B7: PARCIAL | C7: % | D7: ='PFS_IX_Cron. Físico-Financeiro'!D8 -> 0.0556 | E7: ='PFS_IX_Cron. Físico-Financeiro'!E8 -> 0.0556 | F7: ='PFS_IX_Cron. Físico-Financeiro'!F8 -> 0.0556 | G7: ='PFS_IX_Cron. Físico-Financeiro'!K8 -> 0.0556 | H7: ='PFS_IX_Cron. Físico-Financeiro'!L8 -> 0.0556 | I7: ='PFS_IX_Cron. Físico-Financeiro'!Q8 -> 0.0556 | J7: ='PFS_IX_Cron. Físico-Financeiro'!U8 -> 0.0548 | K7: ='PFS_IX_Cron. Físico-Financeiro'!#REF! ->  | L7: ='PFS_IX_Cron. Físico-Financeiro'!#REF! ->  | M7: ='PFS_IX_Cron. Físico-Financeiro'!#REF! ->  | N7: ='PFS_IX_Cron. Físico-Financeiro'!#REF! ->  | O7: ='PFS_IX_Cron. Físico-Financeiro'!#REF! -> 
C8: R$ | D8: - | E8: - | F8: - | G8: - | H8: - | I8: - | J8: - | K8: - | L8: - | M8: - | N8: - | O8: -
B9: ACUMULADO | C9: % | D9: =E7 -> 0.0556 | E9: =E7+D9 -> 0.1112 | F9: =F7+E9 -> 0.1668 | G9: 0.2224 | H9: 0.278 | I9: 0.3336 | J9: 0.3884
C10: R$ | D10: - | E10: - | F10: - | G10: - | H10: - | I10: - | J10: - | K10: - | L10: - | M10: - | N10: - | O10: -
A12: PÉRIODO | D12: PERÍODO - DIAS
A14: DIAS ACUMULADOS | D14: =O5+30 -> 390 | E14: =D14+30 -> 420 | F14: =E14+30 -> 450 | G14: 480 | H14: 510 | I14: 540 | J14: 570 | K14: 600 | L14: 630 | M14: 660 | N14: 690 | O14: 720
A15: FÍSICO | B15: Relatórios Mensais | C15: Unid.
A16: FINANCEIRO | B16: PARCIAL | C16: % | D16: ='PFS_IX_Cron. Físico-Financeiro'!#REF! ->  | E16: ='PFS_IX_Cron. Físico-Financeiro'!#REF! ->  | F16: ='PFS_IX_Cron. Físico-Financeiro'!#REF! ->  | G16: ='PFS_IX_Cron. Físico-Financeiro'!#REF! ->  | H16: ='PFS_IX_Cron. Físico-Financeiro'!#REF! ->  | I16: ='PFS_IX_Cron. Físico-Financeiro'!#REF! ->  | J16: ='PFS_IX_Cron. Físico-Financeiro'!#REF! ->  | K16: ='PFS_IX_Cron. Físico-Financeiro'!#REF! ->  | L16: ='PFS_IX_Cron. Físico-Financeiro'!#REF! ->  | M16: ='PFS_IX_Cron. Físico-Financeiro'!#REF! ->  | N16: ='PFS_IX_Cron. Físico-Financeiro'!#REF! ->  | O16: ='PFS_IX_Cron. Físico-Financeiro'!#REF! -> 
C17: R$ | D17: - | E17: - | F17: - | G17: - | H17: - | I17: - | J17: - | K17: - | L17: - | M17: - | N17: - | O17: -
B18: ACUMULADO | C18: % | D18: =O9+D16 ->  | E18: =D18+E16 ->  | F18: =E18+F16 -> 
C19: R$ | D19: - | E19: - | F19: - | G19: - | H19: - | I19: - | J19: - | K19: - | L19: - | M19: - | N19: - | O19: -
A21: Orçamento Referencial - CONTRATAÇÃO DE EMPRESA ESPECIALIZADA PARA PRESTAÇÃO DOS SERVIÇOS DE SUPERVISÃO DA ELABORAÇÃO DOS PROJETOS BÁSICO E EXECUTIVO E DA EXECUÇÃO DAS OBRAS DE DUAS PONTES NA BR-425/RO (RIO ARARAS E RIO RIBEIRÃO) Nome da Empresa IDENTIFICAÇÃO,QUALIFICAÇÃOE ASSINATURA DA RESPONSÁVEL

Sheet Cálculo Desembolso (hidden)
B2: CÁLCULO DE DESEMBOLSO MENSAL
B3: Janeiro | C3: -- | D3: ='PFS_IX_Cron. Físico-Financeiro'!E9 -> 84455.32 | E3: =D3 -> 84455.32
B4: Fevereiro | C4: -- | D4: ='PFS_IX_Cron. Físico-Financeiro'!F9 -> 84455.32 | E4: =D4 -> 84455.32
B5: Março | C5: -- | D5: =D4 -> 84455.32 | E5: =D5 -> 84455.32
B6: Abril | C6: -- | D6: 84455.32 | E6: =D6 -> 84455.32
B7: Maio | C7: -- | D7: 84455.32 | E7: =E6 -> 84455.32
B8: Junho | C8: -- | D8: 84455.32 | E8: 84455.32
B9: Julho | C9: -- | D9: 84455.32 | E9: 84455.32
B10: Agosto | C10: -- | D10: 84455.32 | E10: 84455.32
B11: Setembro | C11: -- | D11: 84455.32 | E11: 84455.32
B12: Outubro | C12: -- | D12: 84455.32 | E12: 84455.32 | G12: ='PFS- I- Orçam Base'!K42 -> 1520195.83
B13: Novembro | C13: -- | D13: 84455.32 | E13: 84455.32
B14: Dezembro | C14: ='PFS_IX_Cron. Físico-Financeiro'!D11 -> 84455.32 | D14: 84455.32
B15: Total | C15: =SUM(C14) -> 84455.32 | D15: =SUM(D3:D14) -> 1013463.84 | E15: =SUM(E3:E14) -> 929008.52

Sheet Critérios de Pagamento (hidden)
A1: NÃO É NECESSÁRIO INSERIR COMO ANEXO DO EDITAL - TODAS AS INFORMAÇÕES NECESSÁRIAS ESTÃO EXPOSTAS NO CRONOGRAMA FÍSICO-FINANCEIRO
A2: Critérios de Pagamento
A3: DESCRIÇÃO DO SERVIÇO | C3: UNID | E3: QUANT | F3: PERCENTUAL S/ PREÇO GLOBAL | G3: VALOR TOTAL
A4: PROJETO
A5: P1 | B5: Assessoramento de Engenharia
A6: P1.1 | B6: Gestão de Planejamento e Projetos | C6: Relatório | D6: CONSULTORIA | E6: 36 | F6: 0.219972 | G6: =F6*$G$15 -> 9518554.4
A7: P1.2 | B7: Gestão de Desapropriação, Reassentamento e Meio Ambiente | C7: Relatório | D7: CONSULTORIA | E7: 36 | F7: 0.22867 | G7: =F7*$G$15 -> 9894931.33
A8: P1.3 | B8: Gestão de Construção | C8: Relatório | D8: CONSULTORIA | E8: 36 | F8: 0.282679 | G8: =F8*$G$15 -> 12231990.61
A9: P2 | B9: Assessoramento Gerencial
A10: P2.1 | B10: Assessoria Orçamentária, Financeira e Contábil | C10: Relatório | D10: CONSULTORIA | E10: 36 | F10: 0.037727 | G10: =F10*$G$15 -> 1632510.05
A11: P2.2 | B11: Assessoria para demandas de Órgãos de Controle | C11: Relatório | D11: CONSULTORIA | E11: 36 | F11: 0.059071 | G11: =F11*$G$15 -> 2556100.44
A12: P2.3 | B12: Assessoria de Comunicação Social | C12: Relatório | D12: CONSULTORIA | E12: 36 | F12: 0.048771 | G12: =F12*$G$15 -> 2110402.31
A13: P2.4 | B13: Assessoria de Tecnologia da Informação | C13: Relatório | D13: CONSULTORIA | E13: 36 | F13: 0.040163 | G13: =F13*$G$15 -> 1737919.83
A14: P2.5 | B14: Gestão de Apoio Administrativo | C14: Relatório | D14: CONSULTORIA | E14: 36 | F14: 0.082947 | G14: =F14*$G$15 -> 3589254.69
A15: TOTAL GERAL | F15: 1 | G15: 43271663.66
A18: Critérios de Pagamento
A19: DESCRIÇÃO DO SERVIÇO | C19: UNID | E19: QUANT | F19: PERCENTUAL S/ PREÇO GLOBAL | G19: VALOR TOTAL
A20: PROJETO
A21: P1 | B21: Assessoramento de Engenharia
A22: P1.1 | B22: Gestão de Planejamento e Projetos | C22: Relatório | D22: CONSULTORIA | E22: 36 | F22: 0.219972
A23: P1.2 | B23: Gestão de Desapropriação, Reassentamento e Meio Ambiente | C23: Relatório | D23: CONSULTORIA | E23: 36 | F23: 0.22867
A24: P1.3 | B24: Gestão de Construção | C24: Relatório | D24: CONSULTORIA | E24: 36 | F24: 0.282679
A25: P2 | B25: Assessoramento Gerencial
A26: P2.1 | B26: Assessoria Orçamentária, Financeira e Contábil | C26: Relatório | D26: CONSULTORIA | E26: 36 | F26: 0.037727
A27: P2.2 | B27: Assessoria para demandas de Órgãos de Controle | C27: Relatório | D27: CONSULTORIA | E27: 36 | F27: 0.059071
A28: P2.3 | B28: Assessoria de Comunicação Social | C28: Relatório | D28: CONSULTORIA | E28: 36 | F28: 0.048771
A29: P2.4 | B29: Assessoria de Tecnologia da Informação | C29: Relatório | D29: CONSULTORIA | E29: 36 | F29: 0.040163
A30: P2.5 | B30: Gestão de Apoio Administrativo | C30: Relatório | D30: CONSULTORIA | E30: 36 | F30: 0.082947
A31: TOTAL GERAL | F31: 1

Sheet Memória de cálculo (hidden)
C1: ='[37]PFS_VII Det_ Enc_ Soc_'!C1 -> Ministério do Desenvolvimento Regional - MDR
C2: Companhia de Desenvolvimento dos Vales do São Francisco e do Parnaíba
B4: MEMÓRIA DE CÁLCULO
B6: ITEM 02: RELATÓRIO TÉCNICO DE FISCALIZAÇÃO
B8: PROFISSIONAIS DO APOIO POR EQUIPE
B9: Profissional | C9: Quantidade | D9: Unidade
B10: Engenheiro | C10: 6 | D10: coordenador
B11: Técnico de campo | C11: 30 | D11: técnico(s)
B13: EQUIPAMENTOS UTILIZADOS POR EQUIPE
B14: Item | C14: Quantidade | D14: Unidade
B15: Veículo | C15: 1 | D15: unidade(s)
B16: Notebook | C16: 1 | D16: unidade(s)
B17: GPS | C17: 1 | D17: unidade(s)
B18: Plano celular | C18: 1 | D18: unidade(s)
B20: APROPRIAÇÃO DO SERVIÇO DE VISTORIA TÉCNICA POR DIA
B21: Do Coordenador
B22: Serviço | C22: Quantidade | D22: Unidade
B23: Relatório | C23: 1.5 | D23: horas
B24: Total | C24: =SUM(C23:C23) -> 1.5 | D24: horas técnicas por vistória
B25: Da equipe de campo
B26: Serviço | C26: Quantidade | D26: Unidade
B27: Vistoria de campo | C27: 5.5 | D27: horas
B28: Deslocamento/Alimentação | C28: 2.5 | D28: horas
B29: Relatório | C29: 2.5 | D29: horas
B30: Total | C30: =SUM(C27:C29) -> 10.5 | D30: horas técnicas por vistória
B32: PRODUTIVIDADE DA EQUIPE POR DIA DE TRABALHO
B33: Item | C33: Quantidade | D33: Unidade
B34: Quantidade de vias vistoriadas por dia pela equipe A2 | C34: 10 | D34: vias
B35: Quantidade de vias vistoriadas por dia pela equipe A1 | C35: 5 | D35: vias
B38: APROPRIAÇÃO DE CADA ITEM POR RELATÓRIO TÉCNICO PRODUZIDO
B39: Item | C39: Quantidade | D39: Unidade
B40: Coordenador | C40: =(C10*C23/C34/176) -> 0.00511 | D40: meses por relatório técnico
B41: Técnico de campo | C41: =(C11*C30/C34/176) -> 0.17898 | D41: meses por relatório técnico
B42: Veículo | C42: =(C15/C34/30) -> 0.00333 | D42: meses por relatório técnico
B43: Notebook | C43: =(C16/C34/30) -> 0.00333 | D43: meses por relatório técnico
B44: GPS | C44: =(C17/C34/30) -> 0.00333 | D44: meses por relatório técnico
B45: Plano celular | C45: =(C18/C34/30) -> 0.00333 | D45: meses por relatório técnico
B46: Diária de campo A1 | C46: =C10/C35 -> 1.2 | D46: diárias por relatório técnico
B47: Diária de campo A2 | C47: =C11/C34 -> 3 | D47: diárias por relatório técnico

Sheet Tabela de veículos (hidden)
A1: MINISTÉRIO DA INTEGRAÇÃO NACIONAL COMPANHIA DE DESENVOLVIMENTO DOS VALES DO SÃO FRANCISCO E DO PARNAÍBA
A2: TABELA DE VEÍCULOS - 3ª/SR/Petrolina - PE
A3: DATA: fevereiro-20
A4: DESCRIÇÃO DO VEÍCULO | B4: CUSTO MENSAL (R$) | D4: CUSTO DIRETO P/KM RODADO (R$) | F4: PREÇO COBRADO PELA EMPRESA (BDI=20,32%) (R$)
B5: S/ MOTORISTA | C5: C/ MOTORISTA | D5: S/ MOTORISTA | E5: C/ MOTORISTA | F5: S/ MOTORISTA | G5: C/ MOTORISTA
A6: MOTOS
A7: (B1) CG 160 CARGO | B7: 1271.24 | C7: 5489.42 | D7: 0.42 | E7: 1.83 | F7: 1529.56 | G7: 6604.88
A8: VEÍCULOS LEVES
A9: (B2) Gol 1.0 T. Flex 12V 5p | B9: 3012.04 | C9: 7230.22 | D9: 1 | E9: 2.41 | F9: 3624.09 | G9: 8699.41
A10: (B3) UNO WAY 1.3 Flex 8V 5p | B10: 3251.84 | C10: 7470.02 | D10: 1.08 | E10: 2.49 | F10: 3912.62 | G10: 8987.93
A11: (B4) Nissan Versa S 1.6 16V FlexStart 4p Mec. | B11: 3437.28 | C11: 7655.46 | D11: 1.15 | E11: 2.55 | F11: 4135.74 | G11: 9211.05
A12: UTILITÁRIOS
A13: (B5) Doblo ESSENCE 1.8 Flex 16V 5p | B13: 4636.02 | C13: 8854.2 | D13: 1.55 | E13: 2.95 | F13: 5578.06 | G13: 10653.37
A14: (B6) Sprinter 415 VAN Standard T.B. 2.2 Dies. | B14: 7150.44 | C14: 11368.62 | D14: 2.38 | E14: 3.79 | F14: 8603.41 | G14: 13678.72
A15: (B7) Microônibus VOLARE FRETAMENTO V8L LONGO (diesel)(E5) | B15: 9931.9 | C15: 14150.08 | D15: 3.31 | E15: 4.72 | F15: 11950.06 | G15: 17025.38
A16: (B8) Ônibus Urbano Marcopolo Viale (45 lug) (218 cv) | B16: 11906.03 | C16: 16124.21 | D16: 3.97 | E16: 5.37 | F16: 14325.33 | G16: 19400.65
A17: PICK-UP
A18: (B9) Saveiro Robust 1.6 Total Flex 8V | B18: 3301.7 | C18: 7519.88 | D18: 1.1 | E18: 2.51 | F18: 3972.61 | G18: 9047.92
A19: (B10) Hilux CS 4x4 2.8 TDI Diesel Mec. | B19: 5893.43 | C19: 10111.61 | D19: 1.96 | E19: 3.37 | F19: 7090.98 | G19: 12166.29
A20: (B11) Hilux CD 4x4 2.8 Diesel Mec. | B20: =#REF! ->  | C20: 10692.44 | D20: 2.16 | E20: 3.56 | F20: 7789.84 | G20: 12865.15
